bitfinex/quotes_ETHUSD_20240810
["timestamp","ask_amount","ask_price","bid_price","bid_amount"]
[1723270237035,4.5248892,2615.0,2614.6,0.11546662]
[1723270237332,2.6128192,2615.0,2614.6,2.02779662]
[1723270238345,2.6128192,2615.0,2614.6,0.11546662]
[1723270238553,2.6128192,2615.0,2614.6,2.02779662]
[1723270238835,0.1267192,2615.0,2614.6,2.02776662]
[1723270239198,0.1267192,2615.0,2614.6,2.23054328]
[1723270239404,0.1267192,2615.0,2614.7,1.91221]
[1723270239815,0.1267192,2615.0,2614.9,3.82422]
[1723270240018,0.1267192,2615.0,2614.9,4.37422]
[1723270240448,0.1267192,2615.0,2614.9,7.4896127]
[1723270240651,0.1267192,2615.0,2614.9,13.15258097]
[1723270241649,0.1267192,2615.0,2614.9,11.24047097]
[1723270243711,0.1267192,2615.0,2614.9,13.15258097]
[1723270243936,0.1267192,2615.0,2614.9,11.24047097]
[1723270247153,0.1267192,2615.0,2614.9,13.15258097]
[1723270249243,0.1267192,2615.0,2614.9,11.24047097]
[1723270249850,0.1267192,2615.0,2614.9,13.15258097]
[1723270250545,0.1267192,2615.0,2614.9,11.24047097]
[1723270250728,0.1267192,2615.0,2614.9,13.15258097]
[1723270250923,0.1267192,2615.0,2614.9,11.24047097]
[1723270251942,0.1267192,2615.0,2614.9,13.15258097]
[1723270252436,0.1267192,2615.0,2614.9,11.24047097]
[1723270252642,0.1267192,2615.0,2614.9,13.15258097]
[1723270255648,0.1267192,2615.0,2614.9,8.95677097]
[1723270256838,0.1267192,2615.0,2614.9,10.86888097]
[1723270259771,0.1267192,2615.0,2614.9,8.95677097]
[1723270260124,0.1267192,2615.0,2614.9,10.86888097]
[1723270260558,0.1267192,2615.0,2614.9,8.95677097]
[1723270260856,0.1267192,2615.0,2614.9,10.86888097]
[1723270261557,0.1267192,2615.0,2614.9,8.95677097]
[1723270261947,0.1267192,2615.0,2614.9,10.86888097]
[1723270262929,0.1267192,2615.0,2614.9,13.34388097]
[1723270266472,0.1267192,2615.0,2614.9,15.25599097]
[1723270266832,0.1267192,2615.0,2614.9,15.91722823]
[1723270267135,0.1267192,2615.0,2614.9,15.25599097]
[1723270267449,0.1267192,2615.0,2614.9,15.91720335]
[1723270268975,0.1267192,2615.0,2614.9,15.25599097]
[1723270269148,0.1267192,2615.0,2614.9,15.91720595]
[1723270269346,0.1267192,2615.0,2614.9,15.25599097]
[1723270269660,0.1267192,2615.0,2614.9,15.91719236]
[1723270269867,2.3206,2616.0,2615.9,1.91138]
[1723270270078,2.3206,2616.0,2615.9,2.46138]
[1723270270383,2.3206,2616.2,2616.0,1.9113]
[1723270270842,2.3206,2616.2,2616.1,0.11370963]
[1723270271590,2.3206,2616.1,2615.5,1.91162]
[1723270271747,4.23185,2616.1,2615.6,0.55]
[1723270271947,2.3206,2616.0,2615.6,0.66370963]
[1723270272155,2.3206,2615.9,2615.6,0.66370963]
[1723270272383,4.23199,2615.9,2615.6,0.11370963]
[1723270272588,2.3206,2615.9,2615.6,0.11370963]
[1723270272747,2.3206,2615.9,2615.4,1.9117]
[1723270272946,2.8307497,2615.9,2615.6,1.91156]
[1723270273148,2.3206,2615.9,2615.6,1.91156]
[1723270273591,2.3206,2615.9,2615.7,0.11370963]
[1723270274094,2.3206,2615.9,2615.4,3.0]
[1723270274389,2.3206,2615.9,2615.8,0.11370963]
[1723270274547,2.3206,2615.9,2615.3,1.91177]
[1723270274894,2.3206,2615.9,2615.5,3.82329]
[1723270275095,2.3206,2615.9,2615.5,1.91163]
[1723270275253,2.3206,2615.9,2615.6,2.02533246]
[1723270275588,2.3206,2615.9,2615.6,0.11374246]
[1723270276460,2.3206,2615.9,2615.7,1.91152]
[1723270276660,2.3206,2615.9,2615.8,0.11381633]
[1723270277051,2.3206,2615.9,2615.5,1.91162]
[1723270277384,2.3206,2615.9,2615.6,2.02541633]
[1723270277806,2.3206,2615.9,2615.6,0.11381633]
[1723270278397,2.3206,2615.7,2615.6,0.11381633]
[1723270278783,2.3206,2615.7,2615.3,3.0]
[1723270279109,2.3206,2615.7,2614.6,2.11508666]
[1723270279110,1.9119,2615.2,2614.6,1.91227]
[1723270279265,2.3206,2615.0,2614.6,1.91227]
[1723270279604,2.3206,2615.0,2614.2,0.74140666]
[1723270279910,2.3206,2615.0,2614.8,1.91214]
[1723270280263,2.3206,2615.0,2614.9,1.91211]
[1723270280790,2.3206,2615.0,2614.9,0.10998141]
[1723270280963,2.3206,2615.0,2614.9,0.65998141]
[1723270281167,2.3206,2615.0,2614.9,0.10998141]
[1723270281393,2.55266,2615.0,2614.6,1.91228]
[1723270281705,2.3206,2615.0,2614.6,1.91228]
[1723270281914,2.3206,2615.0,2614.7,0.10998141]
[1723270282770,2.3206,2615.0,2614.5,1.9124]
[1723270282982,2.3206,2615.0,2614.8,0.10998141]
[1723270283182,2.3206,2615.0,2614.3,1.9125]
[1723270283383,2.3206,2615.0,2614.9,0.10998141]
[1723270283667,2.3206,2615.0,2614.5,3.0]
[1723270283871,2.3206,2615.0,2614.6,0.55]
[1723270284095,2.3206,2615.0,2614.7,1.91221]
[1723270284400,2.3206,2615.0,2614.8,1.91212]
[1723270284906,2.3206,2615.0,2614.9,0.10998141]
[1723270285107,2.3206,2615.0,2614.7,1.91225]
[1723270285306,2.3206,2615.0,2614.9,0.10998141]
[1723270285511,2.3206,2615.0,2614.7,1.91225]
[1723270285807,2.3206,2615.0,2614.9,0.10998141]
[1723270286009,2.3206,2615.0,2614.8,1.91219]
[1723270286208,2.3206,2615.0,2614.9,0.10998141]
[1723270287509,2.3206,2615.0,2614.7,1.91224]
[1723270287671,2.3206,2615.0,2614.9,0.11050681]
[1723270287872,2.3206,2615.0,2614.7,1.91224]
[1723270288073,2.3206,2615.0,2614.8,0.11050681]
[1723270290125,2.3206,2615.0,2614.5,4.91237]
[1723270290274,2.3206,2615.0,2614.9,0.11050681]
[1723270290471,2.743861,2615.0,2614.4,2.46242]
[1723270290778,2.743861,2615.0,2614.5,0.11050681]
[1723270291087,2.2742,2614.8,2614.5,0.11050681]
[1723270292735,2.2742,2614.6,2613.8,1.91289]
[1723270292883,2.2742,2614.0,2613.3,1.91328]
[1723270293083,4.18699,2614.0,2613.5,1.91312]
[1723270293319,4.18699,2614.0,2613.5,2.29576]
[1723270293520,4.18699,2614.0,2613.5,1.91312]
[1723270294495,2.2742,2614.0,2613.6,1.91306]
[1723270294820,2.2742,2614.4,2614.1,1.91266]
[1723270294993,2.2742,2614.4,2613.9,1.91278]
[1723270295434,2.692858,2614.4,2613.9,1.91278]
[1723270295733,2.692858,2614.4,2614.0,2.02325681]
[1723270295935,2.692858,2614.4,2614.0,2.02323681]
[1723270296614,2.2742,2614.4,2614.0,2.02323681]
[1723270297010,2.2742,2614.4,2614.0,2.02322681]
[1723270297225,2.2742,2614.4,2614.0,2.02321681]
[1723270297940,2.2742,2614.4,2614.2,1.91258]
[1723270298230,2.2742,2614.4,2614.0,1.91272]
[1723270298437,2.2742,2614.4,2614.3,0.11050681]
[1723270298642,2.2742,2614.8,2614.3,0.11050681]
[1723270298804,2.2742,2614.8,2614.4,3.82494]
[1723270299138,2.2742,2614.8,2614.4,3.93685666]
[1723270299434,2.2742,2614.8,2614.6,1.91229]
[1723270299919,2.2742,2614.8,2614.7,0.11197666]
[1723270301019,4.18639,2614.8,2614.2,1.91258]
[1723270301219,4.18639,2614.8,2614.3,0.55]
[1723270301616,4.18639,2614.8,2614.4,0.11197666]
[1723270301821,4.796239,2614.8,2614.4,0.11197666]
[1723270302628,2.884049,2614.8,2614.4,0.11197666]
[1723270304542,1.91228,2614.7,2614.4,0.11197666]
[1723270304705,1.91228,2614.7,2614.1,4.91267]
[1723270304906,6.09868,2614.8,2614.5,0.11181238]
[1723270305118,6.09868,2614.8,2614.2,2.46261]
[1723270305322,6.708548,2614.8,2614.6,0.11181238]
[1723270305601,1.91226,2614.7,2614.2,0.55]
[1723270305909,2.4845,2614.4,2614.0,1.91272]
[1723270306109,2.4845,2614.4,2613.9,4.91284]
[1723270306308,3.955,2614.2,2612.9,2.50145183]
[1723270306631,3.82564,2614.0,2613.3,1.91324]
[1723270306804,4.39736,2613.9,2613.3,1.91324]
[1723270307437,4.39736,2613.9,2613.3,3.82649]
[1723270307659,4.39736,2613.9,2613.3,1.91324]
[1723270308662,5.028378,2613.9,2613.3,1.91324]
[1723270310266,2.4845,2613.8,2613.2,3.0]
[1723270310432,2.4845,2613.2,2612.5,1.98043421]
[1723270310628,1.91343,2613.1,2612.5,2.17806471]
[1723270310829,1.91343,2613.1,2612.6,0.11233819]
[1723270310830,3.82691,2613.1,2612.6,0.11233819]
[1723270311067,2.4845,2613.0,2612.6,0.11233819]
[1723270311249,4.39802,2613.0,2612.6,0.11233819]
[1723270311570,2.4845,2612.9,2612.1,1.91411]
[1723270311775,2.4845,2612.9,2612.7,0.10870992]
[1723270312071,2.4845,2612.9,2612.3,1.91396]
[1723270312228,2.4845,2612.9,2612.8,0.10980294]
[1723270312431,3.319799,2612.9,2612.3,3.82793]
[1723270312625,2.4845,2612.9,2612.3,3.82793]
[1723270312827,2.4845,2612.9,2612.4,0.10980294]
[1723270313028,2.4845,2612.9,2612.4,2.02373294]
[1723270313236,2.4845,2612.9,2612.5,1.9138]
[1723270313767,2.4845,2612.9,2612.6,0.11004141]
[1723270316530,2.4845,2613.2,2612.7,1.91367]
[1723270316758,2.4845,2613.2,2612.7,2.02372786]
[1723270317471,2.4845,2613.2,2612.8,1.91362]
[1723270317634,2.4845,2613.2,2612.7,2.02372786]
[1723270317833,2.4845,2613.2,2612.7,1.91367]
[1723270318169,2.4845,2613.2,2612.8,0.11005786]
[1723270318471,2.4845,2613.2,2612.7,1.91367]
[1723270318767,2.4845,2613.2,2612.7,3.82734]
[1723270318952,2.4845,2613.2,2612.8,0.11005786]
[1723270319127,2.4845,2613.2,2612.7,1.91367]
[1723270319326,2.4845,2613.2,2612.9,0.11005786]
[1723270319529,2.4845,2613.2,2612.7,3.82735]
[1723270319766,2.4845,2613.2,2613.0,0.11005786]
[1723270320073,2.4845,2613.2,2612.7,3.82735]
[1723270320271,2.4845,2613.2,2613.1,0.11005786]
[1723270320442,2.4845,2613.2,2612.7,1.91367]
[1723270320974,2.4845,2613.2,2612.8,0.11005786]
[1723270321177,2.4845,2613.2,2612.7,1.91367]
[1723270321347,2.4845,2613.2,2612.9,0.11005786]
[1723270321667,2.4845,2613.2,2612.7,1.91367]
[1723270321871,2.4845,2613.2,2613.0,0.11005786]
[1723270322067,2.4845,2613.2,2612.7,1.91367]
[1723270322231,2.4845,2613.2,2613.1,0.11055936]
[1723270322436,2.4741,2613.1,2612.5,3.82765]
[1723270322980,2.4741,2613.1,2612.6,1.91378]
[1723270324646,2.4741,2613.1,2612.7,1.91372]
[1723270325172,2.4741,2613.1,2612.8,1.91361]
[1723270325764,2.4741,2613.1,2612.9,0.1104689]
[1723270326084,2.4741,2613.1,2612.8,1.91364]
[1723270326234,2.4741,2613.1,2613.0,0.1104689]
[1723270326446,2.4741,2613.1,2612.8,1.91364]
[1723270326651,2.4741,2613.5,2613.0,2.0239289]
[1723270326966,2.4741,2613.5,2613.1,2.0238989]
[1723270327900,2.4741,2613.5,2613.2,1.91335]
[1723270328188,2.4741,2613.5,2613.4,1.91321]
[1723270328601,2.4741,2613.5,2613.4,2.02344044]
[1723270329601,11.245,2614.0,2613.4,2.02344044]
[1723270329602,9.7641,2614.0,2613.6,1.91304]
[1723270329958,9.7641,2614.0,2613.7,0.11007424]
[1723270330161,2.4741,2614.0,2613.7,0.11007424]
[1723270332962,2.4741,2614.0,2613.7,2.02302424]
[1723270333158,2.4741,2614.0,2613.8,1.91292]
[1723270333392,2.4741,2614.0,2613.8,2.02214754]
[1723270333578,2.4741,2614.2,2613.8,2.02214754]
[1723270333774,2.4741,2614.2,2613.8,0.10922754]
[1723270333775,1.91274,2614.1,2613.8,0.10922754]
[1723270333985,3.308262,2614.2,2613.8,0.10922754]
[1723270333986,5.220932,2614.2,2613.8,0.10922754]
[1723270334165,1.9127,2614.1,2613.6,1.91306]
[1723270334377,5.220932,2614.2,2613.9,0.10922754]
[1723270334685,5.220932,2614.2,2613.6,1.91306]
[1723270334885,5.220932,2614.2,2614.0,0.10922754]
[1723270335072,5.220932,2614.2,2614.1,0.10922754]
[1723270335463,5.220932,2614.2,2613.6,3.82608]
[1723270335663,4.38677,2614.2,2613.6,3.82608]
[1723270336103,2.4741,2614.2,2613.7,2.02215754]
[1723270336867,4.38677,2614.2,2613.7,0.10922754]
[1723270338300,1.91283,2614.0,2613.7,0.10922754]
[1723270338498,2.4741,2613.9,2613.4,1.91316]
[1723270338922,2.4741,2613.9,2613.5,0.10926042]
[1723270339305,2.4741,2613.9,2613.5,2.02236042]
[1723270344331,2.4741,2613.9,2613.6,1.91306]
[1723270344626,2.4741,2613.9,2613.7,0.10932615]
[1723270345746,2.4741,2613.9,2613.4,1.91316]
[1723270346237,2.4741,2613.9,2613.4,3.82633]
[1723270346412,2.4741,2613.9,2613.5,0.10932615]
[1723270346611,2.4741,2613.9,2613.5,2.02246615]
[1723270347122,2.4741,2613.9,2613.6,1.91305]
[1723270347647,2.4741,2613.9,2613.7,0.10932615]
[1723270348530,2.4513,2614.2,2613.7,0.10932615]
[1723270348838,4.36394,2614.2,2613.7,0.10932615]
[1723270349797,2.4513,2614.2,2613.7,0.10932615]
[1723270349997,2.4513,2614.2,2613.8,1.91288]
[1723270350510,2.4513,2614.2,2613.9,0.10932615]
[1723270351306,2.4513,2614.2,2614.0,1.91273]
[1723270351522,7.29,2614.4,2614.1,1.91266]
[1723270351894,2.4513,2614.5,2614.2,1.91262]
[1723270352098,0.59934432,2614.8,2614.6,1.91227]
[1723270352400,2.4513,2614.9,2614.6,1.91227]
[1723270352763,2.4513,2614.9,2614.7,0.1091207]
[1723270353298,2.4513,2614.9,2614.6,1.91227]
[1723270353952,2.4513,2614.9,2614.4,1.91244]
[1723270354439,2.4513,2614.9,2614.5,0.1091207]
[1723270355152,2.4513,2614.9,2614.6,1.91231]
[1723270355332,2.4513,2614.9,2614.5,0.1091207]
[1723270355642,2.4513,2614.9,2614.6,0.1091207]
[1723270357148,2.4513,2614.9,2614.1,0.382546]
[1723270357149,2.4513,2614.2,2613.7,3.82591]
[1723270357327,2.4513,2614.2,2613.7,1.91295]
[1723270358454,4.36398,2614.2,2613.5,3.82618]
[1723270358656,1.91278,2614.0,2613.5,2.295708]
[1723270358961,2.4513,2614.2,2613.7,1.91299]
[1723270361658,2.4513,2614.2,2613.5,1.91309]
[1723270361859,1.91271,2614.1,2613.5,1.91309]
[1723270362634,1.91281,2614.0,2613.5,1.91309]
[1723270363480,1.91271,2614.1,2613.5,1.91309]
[1723270363626,1.91271,2614.1,2613.5,3.82619]
[1723270363831,2.4513,2614.2,2613.6,1.91306]
[1723270364070,2.4513,2614.2,2613.7,1.91299]
[1723270364368,2.4513,2614.2,2613.7,1.91293]
[1723270364772,2.4513,2614.2,2613.8,1.91291]
[1723270365436,2.4513,2614.2,2613.7,3.82588]
[1723270366339,2.4513,2614.2,2613.7,1.91293]
[1723270366539,2.4513,2614.2,2613.7,3.82588]
[1723270367166,1.91274,2614.1,2613.5,1.91309]
[1723270367472,1.91274,2614.1,2613.6,0.55]
[1723270367684,3.82549,2614.1,2613.5,1.91309]
[1723270368537,1.91274,2614.1,2613.5,1.91309]
[1723270368744,1.91274,2614.1,2613.6,1.91305]
[1723270368938,2.4513,2614.2,2613.7,1.91299]
[1723270370849,2.4513,2614.2,2613.8,0.10543472]
[1723270371247,2.3578,2614.4,2614.0,1.91275]
[1723270371889,2.3578,2614.4,2614.0,1.91272]
[1723270372594,2.3578,2614.4,2614.1,0.10543472]
[1723270373150,2.3578,2614.4,2614.1,2.01812472]
[1723270374897,7.29,2614.6,2614.1,0.10543472]
[1723270375045,7.29,2614.6,2614.4,1.91247]
[1723270375252,2.3578,2614.8,2614.5,0.55]
[1723270375651,2.3578,2614.8,2614.6,0.1049279]
[1723270379780,1.91226,2614.7,2614.6,0.1049279]
[1723270380095,2.3578,2614.3,2613.8,1.91287]
[1723270380299,2.3578,2614.3,2613.6,1.91301]
[1723270380593,1.91263,2614.2,2613.6,1.91301]
[1723270380802,1.91263,2614.2,2613.7,0.437831]
[1723270380981,3.82529,2614.2,2613.7,0.437831]
[1723270381179,1.91263,2614.2,2613.7,2.350811]
[1723270381687,1.91263,2614.2,2613.7,0.437831]
[1723270382487,1.91263,2614.2,2613.8,0.55]
[1723270383903,3.8253,2614.2,2613.8,0.55]
[1723270384085,1.91278,2614.0,2613.4,1.91317]
[1723270384274,1.91278,2614.0,2613.5,0.55]
[1723270384678,1.91278,2614.0,2613.5,2.46313]
[1723270385227,2.481,2613.9,2613.5,2.46313]
[1723270385519,2.481,2613.9,2613.5,2.90076]
[1723270385818,2.2744,2614.3,2613.8,1.91292]
[1723270386118,2.2744,2614.3,2614.0,1.91277]
[1723270386289,7.29,2614.5,2614.1,1.91266]
[1723270386683,7.29,2614.5,2614.2,0.10462397]
[1723270388227,7.29,2614.5,2614.3,0.10462397]
[1723270388397,4.18688,2614.4,2613.9,2.46282]
[1723270388583,4.18688,2614.4,2613.9,2.90039]
[1723270388584,2.2744,2614.4,2613.9,2.90039]
[1723270388783,2.2744,2614.4,2614.0,1.91277]
[1723270389208,4.18689,2614.4,2613.9,0.98757]
[1723270389597,4.18689,2614.4,2613.9,2.90038]
[1723270390126,4.18689,2614.4,2613.9,0.98757]
[1723270391506,1.91263,2614.2,2613.7,1.91299]
[1723270391719,1.91263,2614.2,2613.7,4.91299]
[1723270391923,4.18689,2614.4,2613.8,2.46292]
[1723270392088,4.18689,2614.4,2613.8,3.200511]
[1723270392596,2.2744,2614.4,2614.1,1.91269]
[1723270394686,2.2744,2614.4,2614.1,1.91265]
[1723270394887,2.2744,2614.4,2614.1,3.82531]
[1723270395189,2.2744,2614.4,2614.1,2.295181]
[1723270395390,2.2744,2614.4,2614.1,4.207841]
[1723270395689,2.2744,2614.4,2613.8,3.647391]
[1723270395690,3.8243,2614.9,2614.3,1.91254]
[1723270395891,1.91232,2614.7,2614.0,1.91271]
[1723270396126,1.91232,2614.7,2614.1,2.889911]
[1723270396828,1.91232,2614.7,2614.2,1.9126]
[1723270396992,1.91232,2614.7,2614.3,0.55]
[1723270398703,2.2744,2614.5,2614.1,2.339911]
[1723270398890,2.2744,2614.5,2614.1,1.91266]
[1723270399727,2.2744,2614.5,2614.1,3.82531]
[1723270400024,2.2744,2614.5,2614.1,1.91265]
[1723270400829,2.2744,2614.5,2614.2,0.10458285]
[1723270401630,2.3242,2614.8,2614.2,0.10458285]
[1723270401850,5.86693,2615.2,2614.4,1.91243]
[1723270401851,2.3242,2615.1,2614.4,1.91243]
[1723270402509,2.3242,2615.1,2614.5,0.10464035]
[1723270402920,1.91205,2615.0,2614.5,0.10464035]
[1723270403696,1.91205,2615.0,2614.5,2.01703035]
[1723270404211,1.91205,2615.0,2614.5,2.46497639]
[1723270404408,1.91205,2615.0,2614.5,0.10464035]
[1723270404613,3.82414,2615.0,2614.5,0.10464035]
[1723270404850,2.3242,2615.1,2614.5,0.10464035]
[1723270404996,3.82434,2614.9,2614.3,2.46254]
[1723270405202,1.9122,2614.8,2614.4,0.10442679]
[1723270407031,3.82414,2615.0,2614.4,2.01689679]
[1723270407235,1.91205,2615.0,2614.4,2.01686679]
[1723270407408,1.91205,2615.0,2614.4,2.56189331]
[1723270409139,2.3242,2615.1,2614.5,0.55]
[1723270409306,2.3242,2615.1,2614.6,1.91227]
[1723270409503,2.3242,2615.1,2614.6,2.01646677]
[1723270409839,2.3242,2615.1,2614.6,2.52523232]
[1723270410212,4.23618,2615.1,2614.6,2.52523232]
[1723270410738,4.23618,2615.1,2614.6,0.10419677]
[1723270411037,1.91198,2615.1,2614.6,0.10419677]
[1723270411247,1.91204,2615.0,2614.6,0.10419677]
[1723270412117,4.23624,2615.0,2614.6,0.10419677]
[1723270412749,2.3242,2615.0,2614.6,2.01652677]
[1723270412954,2.3242,2615.0,2614.6,0.10419677]
[1723270414113,1.91212,2614.9,2614.6,0.10419677]
[1723270416613,1.91219,2614.8,2614.6,0.10419677]
[1723270416917,1.91219,2614.8,2614.2,3.0]
[1723270416918,4.23646,2614.7,2614.2,3.0]
[1723270417137,4.23646,2614.7,2614.3,0.55]
[1723270417308,1.91241,2614.5,2614.1,3.0]
[1723270417514,1.91241,2614.5,2614.0,3.0]
[1723270417715,1.91241,2614.5,2613.9,4.9128]
[1723270417943,1.91234,2614.6,2614.0,0.5650391]
[1723270418127,1.91234,2614.6,2614.1,1.9127]
[1723270418740,4.23648,2614.7,2614.1,1.9127]
[1723270418961,4.23648,2614.7,2614.2,1.91262]
[1723270419326,4.23648,2614.7,2614.1,1.91269]
[1723270419529,1.91234,2614.6,2614.1,1.91269]
[1723270420451,2.3242,2614.7,2614.1,1.91264]
[1723270420882,4.2365,2614.7,2614.1,1.91264]
[1723270421750,4.2365,2614.7,2614.2,1.91261]
[1723270421751,2.3242,2614.7,2614.2,1.91261]
[1723270422584,4.23647,2614.7,2614.1,3.8253]
[1723270422951,4.23647,2614.7,2614.1,1.91264]
[1723270423260,4.23647,2614.7,2614.1,3.8253]
[1723270423589,2.3242,2614.7,2614.2,1.91262]
[1723270424155,2.3242,2614.7,2614.1,1.91269]
[1723270424156,4.2365,2614.7,2614.1,1.91269]
[1723270424470,4.2365,2614.7,2614.1,3.82535]
[1723270426789,4.2365,2614.7,2614.2,1.91262]
[1723270427585,2.3242,2614.7,2614.3,1.91255]
[1723270430921,2.3242,2614.7,2614.4,0.1042625]
[1723270431492,4.23646,2614.7,2614.1,1.91264]
[1723270431701,1.645,2614.6,2614.5,0.1042625]
[1723270432021,1.645,2614.6,2614.3,1.91255]
[1723270432168,1.645,2614.6,2614.5,0.1042625]
[1723270432369,1.645,2614.6,2614.3,1.91255]
[1723270432566,1.645,2614.6,2614.5,0.1042625]
[1723270432774,1.645,2614.6,2614.3,1.91255]
[1723270433016,1.645,2614.6,2614.5,0.1042625]
[1723270433210,1.645,2614.6,2614.3,1.91255]
[1723270433590,1.645,2614.6,2614.3,3.8251]
[1723270433798,1.645,2614.6,2614.4,0.1042625]
[1723270437622,1.645,2614.6,2614.5,1.91241]
[1723270438330,1.645,2614.6,2614.5,2.01659855]
[1723270438828,9.7319,2615.0,2614.6,1.91231]
[1723270439031,1.645,2614.9,2614.6,1.91231]
[1723270439326,1.645,2614.9,2614.7,0.10418034]
[1723270439722,1.645,2614.9,2614.7,2.01639034]
[1723270440330,7.29,2615.0,2614.8,1.91219]
[1723270440930,7.29,2615.0,2614.9,0.10409]
[1723270441095,1.645,2615.1,2614.9,0.10409]
[1723270445097,1.645,2615.1,2614.7,1.91225]
[1723270445098,1.645,2615.1,2614.7,1.91222]
[1723270445604,2.244881,2615.1,2614.7,1.91222]
[1723270445821,1.645,2614.9,2614.8,0.10394218]
[1723270445996,1.645,2614.9,2614.3,1.91249]
[1723270445997,1.91222,2614.8,2614.3,1.91249]
[1723270446196,1.645,2614.6,2614.3,2.295004]
[1723270446442,1.645,2614.6,2614.4,0.10369583]
[1723270448034,1.645,2614.6,2614.4,2.01617583]
[1723270448542,4.37811,2615.1,2614.6,1.91229]
[1723270448699,1.645,2615.0,2614.6,1.91229]
[1723270448895,1.645,2615.0,2614.5,1.91235]
[1723270449090,3.55705,2615.0,2614.7,0.10391756]
[1723270449302,1.645,2615.0,2614.5,1.91235]
[1723270449502,1.645,2615.0,2614.8,0.10391756]
[1723270449726,4.37811,2615.1,2614.5,1.91235]
[1723270449927,4.37811,2615.1,2614.9,0.10385186]
[1723270450131,4.37811,2615.1,2614.6,1.91229]
[1723270450305,2.4661,2615.1,2615.0,0.10385186]
[1723270450504,2.4661,2615.1,2614.7,1.91224]
[1723270450711,2.4661,2615.1,2615.0,0.10385186]
[1723270450894,2.4661,2615.1,2614.7,1.91224]
[1723270451100,2.4661,2615.1,2615.0,0.10385186]
[1723270451299,2.4661,2615.1,2614.7,1.91224]
[1723270451499,2.4661,2615.1,2615.0,0.10385186]
[1723270451736,2.4661,2615.1,2614.7,1.91224]
[1723270451936,2.4661,2615.1,2615.0,0.10379437]
[1723270452237,4.37808,2615.1,2614.5,1.91235]
[1723270452432,4.37808,2615.1,2614.6,1.91229]
[1723270452746,4.37808,2615.1,2614.7,0.10379437]
[1723270453101,1.91208,2615.0,2614.7,0.10379437]
[1723270453429,1.91208,2615.0,2614.4,1.91244]
[1723270453430,1.91208,2615.0,2614.5,1.91238]
[1723270453597,1.91208,2615.0,2614.8,0.10379437]
[1723270453799,1.91208,2615.0,2614.5,1.91238]
[1723270453998,1.91208,2615.0,2614.9,0.10379437]
[1723270454196,1.91208,2615.0,2614.5,1.91238]
[1723270454433,1.91208,2615.0,2614.9,0.10376973]
[1723270454631,1.91208,2615.0,2614.5,1.91238]
[1723270454819,4.37808,2615.1,2614.9,0.10376973]
[1723270455026,1.91213,2614.9,2614.3,3.82501]
[1723270455232,1.91213,2614.9,2614.4,0.55]
[1723270455406,2.4661,2614.8,2614.4,2.46244]
[1723270455601,2.4661,2614.8,2614.4,2.899934]
[1723270456230,2.4661,2614.8,2614.4,0.55]
[1723270456541,2.4661,2614.8,2614.3,0.55]
[1723270456702,2.4661,2614.8,2614.3,2.46255]
[1723270456903,2.4661,2614.8,2614.3,5.46255]
[1723270457128,2.4661,2614.8,2614.3,6.500071]
[1723270458247,2.4661,2614.8,2614.3,6.500031]
[1723270458454,1.91213,2614.9,2614.4,1.91244]
[1723270460753,1.91213,2614.9,2614.5,0.10414749]
[1723270462645,3.82432,2614.9,2614.5,0.10414749]
[1723270462844,4.453362,2614.9,2614.5,0.10414749]
[1723270463155,4.453362,2614.9,2614.6,0.10409]
[1723270463338,4.453362,2614.9,2614.3,1.91254]
[1723270463854,2.541172,2614.9,2614.4,0.10409]
[1723270464192,1.91201,2615.1,2614.6,1.91232]
[1723270464492,1.91201,2615.1,2614.7,0.10411464]
[1723270464989,1.91191,2615.2,2614.7,2.01636464]
[1723270465525,1.91191,2615.2,2614.7,0.10411464]
[1723270468356,11.55077,2615.3,2614.7,2.01633464]
[1723270468357,6.17266,2615.3,2614.7,2.01633464]
[1723270468571,4.26077,2615.3,2614.8,1.91216]
[1723270469066,6.17264,2615.3,2614.9,0.10395039]
[1723270469363,4.26077,2615.3,2614.8,1.91216]
[1723270469862,4.26077,2615.3,2614.9,0.10379435]
[1723270470064,4.26077,2615.3,2614.8,1.91216]
[1723270470756,4.26077,2615.3,2614.9,0.10379435]
[1723270470962,4.26077,2615.3,2614.8,3.82431]
[1723270471136,2.3489,2615.3,2615.0,0.10379435]
[1723270471462,2.3489,2615.3,2614.8,1.91214]
[1723270471667,2.3489,2615.3,2614.9,0.10379435]
[1723270471963,1.644,2615.2,2614.8,1.91214]
[1723270472361,1.644,2615.2,2614.9,0.10379435]
[1723270475480,1.644,2615.2,2614.9,2.01589435]
[1723270476972,2.3489,2615.3,2614.9,2.01589435]
[1723270477180,1.644,2615.2,2614.9,2.01589435]
[1723270480946,1.644,2615.2,2614.9,3.92796435]
[1723270481147,1.644,2615.2,2614.9,2.01586435]
[1723270481682,7.29,2615.6,2615.1,1.91191]
[1723270481683,8.934,2615.6,2615.1,1.91191]
[1723270481882,1.644,2615.6,2615.0,4.77153]
[1723270482179,9.20112,2616.3,2614.9,0.40045587]
[1723270482180,1.644,2615.2,2614.9,0.40045587]
[1723270482384,1.644,2615.2,2614.8,1.91218]
[1723270482682,1.644,2615.2,2614.9,0.55]
[1723270482868,1.644,2615.2,2614.7,1.91222]
[1723270483072,1.644,2615.2,2614.8,2.884356]
[1723270484369,1.644,2615.2,2614.8,0.972176]
[1723270485193,4.33542,2615.3,2614.7,3.0]
[1723270485194,1.644,2615.0,2614.7,3.0]
[1723270485387,1.644,2615.0,2614.6,3.82456]
[1723270485554,1.644,2615.0,2614.7,0.55]
[1723270486449,1.644,2615.0,2614.7,2.46222]
[1723270486650,1.644,2615.2,2614.7,2.899668]
[1723270486877,1.644,2615.2,2614.7,5.209168]
[1723270487877,1.644,2615.2,2614.7,2.899668]